[Event "*** Titled Tuesday Blitz"]
[Site "Chess.com"]
[Date "2020.03.03"]
[Round "8"]
[White "StoreySniper"]
[Black "WiktoriaPOL"]
[Result "0-1"]
[WhiteElo "2425"]
[BlackElo "2341"]
[TimeControl "180+1"]
[EndTime "14:35:48 PST"]
[Termination "WiktoriaPOL won by resignation"]

1. c4 {[%clk 0:03:00.9]} 1... Nf6 {[%clk 0:02:58.6]} 2. g3 {[%clk 0:03:01.3]}
2... g6 {[%clk 0:02:58.3]} 3. Bg2 {[%clk 0:03:01.8]} 3... Bg7 {[%clk 0:02:57.8]}
4. Nc3 {[%clk 0:03:02.5]} 4... O-O {[%clk 0:02:57]} 5. d4 {[%clk 0:03:01.7]}
5... d6 {[%clk 0:02:56.4]} 6. Nf3 {[%clk 0:03:02.2]} 6... Nbd7 {[%clk
0:02:55.9]} 7. O-O {[%clk 0:03:01.7]} 7... e5 {[%clk 0:02:55.3]} 8. e4 {[%clk
0:03:00.2]} 8... Qe7 {[%clk 0:02:51.4]} 9. Re1 {[%clk 0:03:00]} 9... Ne8 {[%clk
0:02:37.5]} 10. d5 {[%clk 0:02:55.1]} 10... f5 {[%clk 0:02:36.1]} 11. Bg5 {[%clk
0:02:54.6]} 11... Nef6 {[%clk 0:02:35.3]} 12. Nd2 {[%clk 0:02:53.5]} 12... h6
{[%clk 0:02:32.2]} 13. Bxf6 {[%clk 0:02:50.5]} 13... Qxf6 {[%clk 0:02:31.5]} 14.
Qe2 {[%clk 0:02:46.3]} 14... f4 {[%clk 0:02:30.7]} 15. f3 {[%clk 0:02:44.2]}
15... fxg3 {[%clk 0:02:23.4]} 16. hxg3 {[%clk 0:02:44.3]} 16... g5 {[%clk
0:02:23.1]} 17. g4 {[%clk 0:02:40.2]} 17... Qg6 {[%clk 0:02:21.3]} 18. Nf1
{[%clk 0:02:37.5]} 18... h5 {[%clk 0:02:19.9]} 19. gxh5 {[%clk 0:02:37.3]} 19...
Qxh5 {[%clk 0:02:19.7]} 20. Ng3 {[%clk 0:02:37.6]} 20... Qh7 {[%clk 0:02:11.7]}
21. Nf5 {[%clk 0:02:36.1]} 21... Nf6 {[%clk 0:02:07.1]} 22. Ne7+ {[%clk
0:02:24.9]} 22... Kf7 {[%clk 0:02:06.7]} 23. Nxc8 {[%clk 0:02:23.4]} 23... Raxc8
{[%clk 0:02:06.1]} 24. Qe3 {[%clk 0:02:21.9]} 24... g4 {[%clk 0:02:02.8]} 25.
Qxa7 {[%clk 0:02:11.1]} 25... gxf3 {[%clk 0:02:00.5]} 26. Bxf3 {[%clk
0:02:11.1]} 26... Rh8 {[%clk 0:01:56]} 27. Re2 {[%clk 0:01:55.7]} 27... Rcg8
{[%clk 0:01:51.3]} 28. Rg2 {[%clk 0:01:46]} 28... Bh6 {[%clk 0:01:47.4]} 29. Rf1
{[%clk 0:01:27.2]} 29... Rxg2+ {[%clk 0:01:45.3]} 30. Bxg2 {[%clk 0:01:25.9]}
30... Rg8 {[%clk 0:01:44.8]} 31. Ne2 {[%clk 0:00:54.1]} 31... Qg6 {[%clk
0:01:41.3]} 32. Rf2 {[%clk 0:00:52]} 32... Ke7 {[%clk 0:01:34]} 33. Kf1 {[%clk
0:00:27.7]} 33... Ng4 {[%clk 0:01:29.9]} 34. Qxb7 {[%clk 0:00:19.8]} 34... Nxf2
{[%clk 0:01:05.2]} 35. Qxc7+ {[%clk 0:00:19.9]} 35... Ke8 {[%clk 0:00:59.6]} 36.
Qc8+ {[%clk 0:00:17.8]} 36... Kf7 {[%clk 0:00:59.2]} 37. Qe6+ {[%clk 0:00:12.2]}
37... Qxe6 {[%clk 0:00:58.2]} 38. dxe6+ {[%clk 0:00:13.1]} 38... Kxe6 {[%clk
0:00:58.4]} 39. Kxf2 {[%clk 0:00:13.7]} 39... Be3+ {[%clk 0:00:51.3]} 40. Kf3
{[%clk 0:00:11.8]} 40... Bd4 {[%clk 0:00:47.6]} 41. b3 {[%clk 0:00:06.6]} 41...
Rf8+ {[%clk 0:00:45.7]} 42. Kg3 {[%clk 0:00:05.3]} 42... Ra8 {[%clk 0:00:41.2]}
43. Nxd4+ {[%clk 0:00:05.1]} 43... exd4 {[%clk 0:00:40.8]} 44. e5 {[%clk
0:00:05.6]} 44... Rxa2 {[%clk 0:00:37.3]} 45. exd6 {[%clk 0:00:06]} 45... Kxd6
{[%clk 0:00:37.3]} 46. Bd5 {[%clk 0:00:05.3]} 46... Kc5 {[%clk 0:00:33.7]} 47.
Kf3 {[%clk 0:00:05.5]} 47... Rb2 {[%clk 0:00:29.2]} 48. Ke4 {[%clk 0:00:05.7]}
48... Rxb3 {[%clk 0:00:28.3]} 49. Bf7 {[%clk 0:00:05.6]} 49... Re3+ {[%clk
0:00:27]} 50. Kf4 {[%clk 0:00:06]} 50... Re7 {[%clk 0:00:25.5]} 51. Bd5 {[%clk
0:00:05.9]} 51... d3 {[%clk 0:00:21.8]} 52. Bf3 {[%clk 0:00:06.1]} 52... Kxc4
{[%clk 0:00:19.2]} 53. Bh5 {[%clk 0:00:05.9]} 53... Kc3 {[%clk 0:00:16.7]} 54.
Kf3 {[%clk 0:00:05.8]} 54... d2 {[%clk 0:00:16.1]} 55. Kf2 {[%clk 0:00:06.3]}
55... Kc2 {[%clk 0:00:15.1]} 0-1

[Event "*** Titled Tuesday Blitz"]
[Site "Chess.com"]
[Date "2020.03.03"]
[Round "8"]
[White "talman67"]
[Black "marianokar"]
[Result "0-1"]
[WhiteElo "2512"]
[BlackElo "2410"]
[TimeControl "180+1"]
[EndTime "14:35:49 PST"]
[Termination "marianokar won by resignation"]

1. e4 {[%clk 0:03:00.9]} 1... c5 {[%clk 0:02:58.5]} 2. Nf3 {[%clk 0:03:00.9]}
2... d6 {[%clk 0:02:57.9]} 3. d4 {[%clk 0:03:01.4]} 3... cxd4 {[%clk 0:02:57.3]}
4. Nxd4 {[%clk 0:03:02.3]} 4... Nf6 {[%clk 0:02:57.8]} 5. Nc3 {[%clk 0:03:02.5]}
5... Nc6 {[%clk 0:02:53.8]} 6. Bg5 {[%clk 0:03:00.4]} 6... e6 {[%clk 0:02:52.7]}
7. Qd2 {[%clk 0:03:00.1]} 7... a6 {[%clk 0:02:52.2]} 8. O-O-O {[%clk 0:02:59]}
8... Bd7 {[%clk 0:02:50.9]} 9. f4 {[%clk 0:02:57.6]} 9... h6 {[%clk 0:02:45.9]}
10. Bh4 {[%clk 0:02:56.4]} 10... g5 {[%clk 0:02:44.1]} 11. fxg5 {[%clk
0:02:55.5]} 11... Ng4 {[%clk 0:02:44]} 12. Be2 {[%clk 0:02:40]} 12... Nge5
{[%clk 0:02:36.4]} 13. Nf3 {[%clk 0:02:34.6]} 13... Be7 {[%clk 0:02:32.8]} 14.
Kb1 {[%clk 0:02:26.1]} 14... hxg5 {[%clk 0:02:12.8]} 15. Bg3 {[%clk 0:02:20.3]}
15... b5 {[%clk 0:02:12.2]} 16. a3 {[%clk 0:01:46.2]} 16... Rb8 {[%clk
0:02:11.3]} 17. Qe3 {[%clk 0:01:35]} 17... Nxf3 {[%clk 0:01:22.8]} 18. Bxf3
{[%clk 0:01:23.2]} 18... Qc7 {[%clk 0:01:23.1]} 19. Rhe1 {[%clk 0:01:01.4]}
19... Ne5 {[%clk 0:01:22.3]} 20. Be2 {[%clk 0:00:47.9]} 20... a5 {[%clk
0:01:03.3]} 21. Rf1 {[%clk 0:00:11.4]} 21... b4 {[%clk 0:01:01.3]} 22. axb4
{[%clk 0:00:12.3]} 22... axb4 {[%clk 0:01:01.4]} 23. Na2 {[%clk 0:00:13]} 23...
Qa5 {[%clk 0:00:54.6]} 24. Bxe5 {[%clk 0:00:10.9]} 24... Qxe5 {[%clk 0:00:50.2]}
25. h3 {[%clk 0:00:07.9]} 25... Bf6 {[%clk 0:00:45.4]} 26. Qb3 {[%clk
0:00:06.3]} 26... Ke7 {[%clk 0:00:42.5]} 27. Rxf6 {[%clk 0:00:05.7]} 27... Kxf6
{[%clk 0:00:40.2]} 28. Nc1 {[%clk 0:00:06.1]} 28... Rhc8 {[%clk 0:00:32.6]} 29.
Qf3+ {[%clk 0:00:05.5]} 29... Kg7 {[%clk 0:00:32.2]} 30. Rf1 {[%clk 0:00:06.4]}
30... f6 {[%clk 0:00:29.3]} 31. Nd3 {[%clk 0:00:05.1]} 31... Qd4 {[%clk
0:00:28.9]} 32. e5 {[%clk 0:00:04.6]} 32... f5 {[%clk 0:00:26.6]} 33. exd6
{[%clk 0:00:03.7]} 33... b3 {[%clk 0:00:20.5]} 34. c3 {[%clk 0:00:02.6]} 34...
Qe4 {[%clk 0:00:19.7]} 35. Qxe4 {[%clk 0:00:02.2]} 35... fxe4 {[%clk 0:00:19.9]}
36. Ne5 {[%clk 0:00:03.1]} 36... Rf8 {[%clk 0:00:18.5]} 37. Rxf8 {[%clk
0:00:02.7]} 37... Rxf8 {[%clk 0:00:17.7]} 38. Nxd7 {[%clk 0:00:03.6]} 38... Rf2
{[%clk 0:00:17.5]} 39. Bd1 {[%clk 0:00:03.5]} 39... e3 {[%clk 0:00:16.2]} 40.
Nc5 {[%clk 0:00:02.9]} 40... Rd2 {[%clk 0:00:14.7]} 41. Kc1 {[%clk 0:00:02.3]}
41... Rxd6 {[%clk 0:00:14.6]} 42. Ne4 {[%clk 0:00:02.8]} 42... Rd5 {[%clk
0:00:12.9]} 43. Ng3 {[%clk 0:00:02.1]} 43... Rd2 {[%clk 0:00:11.8]} 44. Ne2
{[%clk 0:00:02.6]} 44... Kf6 {[%clk 0:00:11]} 45. g4 {[%clk 0:00:02.1]} 45... e5
{[%clk 0:00:10.6]} 46. Ng1 {[%clk 0:00:02.1]} 46... Rf2 {[%clk 0:00:09.8]} 47.
Bxb3 {[%clk 0:00:01.8]} 47... Rf1+ {[%clk 0:00:09.3]} 48. Bd1 {[%clk 0:00:02.5]}
48... Rxg1 {[%clk 0:00:10.1]} 49. b4 {[%clk 0:00:03]} 49... e2 {[%clk 0:00:10]}
50. Kd2 {[%clk 0:00:03.2]} 50... exd1=Q+ {[%clk 0:00:10.2]} 51. Ke3 {[%clk
0:00:04.1]} 51... Re1+ {[%clk 0:00:10.2]} 52. Kf2 {[%clk 0:00:04.2]} 52... Qd2+
{[%clk 0:00:10.4]} 0-1

[Event "*** Titled Tuesday Blitz"]
[Site "Chess.com"]
[Date "2020.03.03"]
[Round "8"]
[White "ChainsOfFantasia"]
[Black "Maili15"]
[Result "1-0"]
[WhiteElo "2532"]
[BlackElo "2334"]
[TimeControl "180+1"]
[EndTime "14:35:49 PST"]
[Termination "ChainsOfFantasia won by resignation"]

1. d4 {[%clk 0:03:00.9]} 1... d5 {[%clk 0:02:59.7]} 2. Nf3 {[%clk 0:03:00.6]}
2... Nf6 {[%clk 0:02:59.1]} 3. c4 {[%clk 0:03:00.8]} 3... dxc4 {[%clk
0:02:58.2]} 4. e3 {[%clk 0:03:00.9]} 4... a6 {[%clk 0:02:56.3]} 5. Bxc4 {[%clk
0:03:00.7]} 5... e6 {[%clk 0:02:54.4]} 6. O-O {[%clk 0:03:00.2]} 6... c5 {[%clk
0:02:53.6]} 7. dxc5 {[%clk 0:02:58.6]} 7... Bxc5 {[%clk 0:02:50.5]} 8. Qxd8+
{[%clk 0:02:57.9]} 8... Kxd8 {[%clk 0:02:49.9]} 9. Rd1+ {[%clk 0:02:58.3]} 9...
Ke7 {[%clk 0:02:48.9]} 10. b3 {[%clk 0:02:49.3]} 10... b5 {[%clk 0:02:46.1]} 11.
Be2 {[%clk 0:02:48]} 11... Bb7 {[%clk 0:02:44.3]} 12. Bb2 {[%clk 0:02:48]} 12...
Nbd7 {[%clk 0:02:39.4]} 13. Nbd2 {[%clk 0:02:43.1]} 13... Rhd8 {[%clk
0:02:34.1]} 14. a4 {[%clk 0:02:43]} 14... bxa4 {[%clk 0:02:27.4]} 15. bxa4
{[%clk 0:02:29.1]} 15... Rab8 {[%clk 0:02:20.1]} 16. Nc4 {[%clk 0:02:22.5]}
16... Bd5 {[%clk 0:02:12.8]} 17. Rab1 {[%clk 0:02:16.2]} 17... Rb4 {[%clk
0:02:02.4]} 18. Nce5 {[%clk 0:01:47.2]} 18... Nxe5 {[%clk 0:01:40.9]} 19. Nxe5
{[%clk 0:01:39.8]} 19... Rxa4 {[%clk 0:01:38.7]} 20. Ra1 {[%clk 0:01:23.7]}
20... Rxa1 {[%clk 0:01:02.9]} 21. Rxa1 {[%clk 0:01:24.6]} 21... Rb8 {[%clk
0:01:01.5]} 22. Bc3 {[%clk 0:00:58.3]} 22... Ne4 {[%clk 0:00:56]} 23. Be1 {[%clk
0:00:58.1]} 23... Bd6 {[%clk 0:00:40.6]} 24. Nf3 {[%clk 0:00:50.8]} 24... Rb2
{[%clk 0:00:21.5]} 25. Bxa6 {[%clk 0:00:48.6]} 25... Nc5 {[%clk 0:00:19.9]} 26.
Bf1 {[%clk 0:00:45.3]} 26... Bxf3 {[%clk 0:00:19]} 27. gxf3 {[%clk 0:00:44.7]}
27... Nb3 {[%clk 0:00:14.7]} 28. Ra7+ {[%clk 0:00:43.7]} 28... Ke8 {[%clk
0:00:14.2]} 29. Rb7 {[%clk 0:00:38.7]} 29... Rb1 {[%clk 0:00:12.7]} 30. Bc3
{[%clk 0:00:30.4]} 30... Nd2 {[%clk 0:00:04.3]} 31. Rxb1 {[%clk 0:00:29.1]}
31... Nxb1 {[%clk 0:00:05.2]} 32. Bxg7 {[%clk 0:00:29.7]} 32... Nd2 {[%clk
0:00:04.7]} 33. Be2 {[%clk 0:00:26.3]} 33... Ke7 {[%clk 0:00:02.5]} 34. Bc3
{[%clk 0:00:25.8]} 34... Nb3 {[%clk 0:00:02.7]} 35. f4 {[%clk 0:00:25]} 35...
Nc5 {[%clk 0:00:02.1]} 36. Kg2 {[%clk 0:00:23.4]} 36... Ne4 {[%clk 0:00:01.4]}
37. Bb2 {[%clk 0:00:23.5]} 37... Nf6 {[%clk 0:00:01.6]} 38. Bd3 {[%clk
0:00:23.2]} 38... Nd5 {[%clk 0:00:02.1]} 39. Bxh7 {[%clk 0:00:22.2]} 39... f5
{[%clk 0:00:02.4]} 40. Bg6 {[%clk 0:00:17.3]} 40... Nf6 {[%clk 0:00:01.1]} 41.
Kg3 {[%clk 0:00:13.9]} 41... Ng8 {[%clk 0:00:01.1]} 42. Bh5 {[%clk 0:00:13.5]}
42... Kf8 {[%clk 0:00:01.4]} 43. Bf3 {[%clk 0:00:13.4]} 43... Ne7 {[%clk
0:00:01.8]} 44. Be2 {[%clk 0:00:10.9]} 44... Kf7 {[%clk 0:00:02.3]} 45. Kg2
{[%clk 0:00:11.3]} 45... Kg6 {[%clk 0:00:02.1]} 46. Be5 {[%clk 0:00:11.3]} 46...
Bxe5 {[%clk 0:00:01.8]} 47. fxe5 {[%clk 0:00:12.2]} 47... Nc6 {[%clk 0:00:02.3]}
48. f4 {[%clk 0:00:12.5]} 48... Nb4 {[%clk 0:00:02.5]} 49. Kf3 {[%clk
0:00:12.7]} 49... Nd5 {[%clk 0:00:02.6]} 50. e4 {[%clk 0:00:12.2]} 50... fxe4+
{[%clk 0:00:02.3]} 51. Kxe4 {[%clk 0:00:13.1]} 51... Nc3+ {[%clk 0:00:02.6]} 52.
Kf3 {[%clk 0:00:13.2]} 52... Kf7 {[%clk 0:00:01.1]} 53. Bd3 {[%clk 0:00:13]}
53... Nd5 {[%clk 0:00:02]} 54. h4 {[%clk 0:00:12.7]} 54... Ne7 {[%clk
0:00:02.3]} 55. Kg4 {[%clk 0:00:12.5]} 55... Ng8 {[%clk 0:00:03.2]} 56. f5
{[%clk 0:00:12.6]} 56... Nh6+ {[%clk 0:00:03.1]} 57. Kg5 {[%clk 0:00:12.6]}
57... Nxf5 {[%clk 0:00:02.8]} 58. Bxf5 {[%clk 0:00:12.7]} 58... exf5 {[%clk
0:00:03.3]} 59. Kxf5 {[%clk 0:00:13.6]} 59... Ke7 {[%clk 0:00:03.5]} 60. h5
{[%clk 0:00:13.7]} 60... Kf7 {[%clk 0:00:03.7]} 61. h6 {[%clk 0:00:14]} 61...
Ke7 {[%clk 0:00:02.1]} 62. h7 {[%clk 0:00:13.7]} 1-0

[Event "*** Titled Tuesday Blitz"]
[Site "Chess.com"]
[Date "2020.03.03"]
[Round "8"]
[White "isla88"]
[Black "karinachess1"]
[Result "1-0"]
[WhiteElo "2338"]
[BlackElo "2502"]
[TimeControl "180+1"]
[EndTime "14:35:53 PST"]
[Termination "isla88 won by resignation"]

1. c4 {[%clk 0:02:00.2]} 1... c5 {[%clk 0:02:59.1]} 2. Nf3 {[%clk 0:01:59.8]}
2... Nc6 {[%clk 0:02:57.5]} 3. Nc3 {[%clk 0:01:59.4]} 3... e5 {[%clk 0:02:54.5]}
4. e3 {[%clk 0:01:59.3]} 4... Nf6 {[%clk 0:02:39.4]} 5. d4 {[%clk 0:01:58.9]}
5... d6 {[%clk 0:02:32.5]} 6. b3 {[%clk 0:01:51.7]} 6... Be7 {[%clk 0:02:31.4]}
7. Bb2 {[%clk 0:01:51.6]} 7... O-O {[%clk 0:02:31.4]} 8. Be2 {[%clk 0:01:51.1]}
8... e4 {[%clk 0:02:26.3]} 9. Nd2 {[%clk 0:01:49.6]} 9... Bf5 {[%clk 0:02:26.7]}
10. Nf1 {[%clk 0:01:36.5]} 10... Re8 {[%clk 0:02:12.5]} 11. Ng3 {[%clk
0:01:35.1]} 11... Bg6 {[%clk 0:02:12.6]} 12. O-O {[%clk 0:01:29.3]} 12... cxd4
{[%clk 0:02:00.2]} 13. exd4 {[%clk 0:01:28.8]} 13... Bf8 {[%clk 0:01:54.5]} 14.
d5 {[%clk 0:01:18.4]} 14... Ne5 {[%clk 0:01:50.9]} 15. Qd4 {[%clk 0:01:18.1]}
15... Nd3 {[%clk 0:01:27.5]} 16. Bxd3 {[%clk 0:00:57.4]} 16... exd3 {[%clk
0:01:28.4]} 17. f4 {[%clk 0:00:56.9]} 17... h6 {[%clk 0:01:16.2]} 18. f5 {[%clk
0:00:55.2]} 18... Bh7 {[%clk 0:01:16.4]} 19. Qxd3 {[%clk 0:00:53.4]} 19... Qb6+
{[%clk 0:01:16.2]} 20. Kh1 {[%clk 0:00:51.6]} 20... Ng4 {[%clk 0:01:14.9]} 21.
Nce4 {[%clk 0:00:41.1]} 21... Ne5 {[%clk 0:01:05.5]} 22. Qc3 {[%clk 0:00:40.1]}
22... f6 {[%clk 0:01:02.8]} 23. a4 {[%clk 0:00:35.1]} 23... Rac8 {[%clk
0:01:02.4]} 24. a5 {[%clk 0:00:34.6]} 24... Qc7 {[%clk 0:01:01.7]} 25. Qd4
{[%clk 0:00:31.5]} 25... a6 {[%clk 0:01:00.8]} 26. Qb6 {[%clk 0:00:29.7]} 26...
Qd7 {[%clk 0:00:51.4]} 27. Ba3 {[%clk 0:00:27.4]} 27... Red8 {[%clk 0:00:47.3]}
28. Nh5 {[%clk 0:00:24]} 28... Qf7 {[%clk 0:00:40.6]} 29. Nhg3 {[%clk
0:00:18.9]} 29... Qd7 {[%clk 0:00:37.1]} 30. Rac1 {[%clk 0:00:17.9]} 30... Kh8
{[%clk 0:00:32.4]} 31. Rc2 {[%clk 0:00:12.2]} 31... Nd3 {[%clk 0:00:25.5]} 32.
Rd2 {[%clk 0:00:09.9]} 32... Nc5 {[%clk 0:00:24.4]} 33. Bxc5 {[%clk 0:00:09.1]}
33... dxc5 {[%clk 0:00:25.3]} 34. Qe6 {[%clk 0:00:09.2]} 34... Bg8 {[%clk
0:00:23.4]} 35. Qxd7 {[%clk 0:00:09.1]} 35... Rxd7 {[%clk 0:00:24.3]} 36. Nh5
{[%clk 0:00:07]} 36... Be7 {[%clk 0:00:23.2]} 37. Nf4 {[%clk 0:00:07.1]} 37...
Bf7 {[%clk 0:00:20.5]} 38. Ne6 {[%clk 0:00:06.7]} 38... Bxe6 {[%clk 0:00:20.3]}
39. fxe6 {[%clk 0:00:05.6]} 39... Rdd8 {[%clk 0:00:18.7]} 40. d6 {[%clk
0:00:06]} 40... Re8 {[%clk 0:00:11.8]} 41. d7 {[%clk 0:00:06]} 41... Rcd8 {[%clk
0:00:11.3]} 42. dxe8=Q+ {[%clk 0:00:06.1]} 42... Rxe8 {[%clk 0:00:12.2]} 43. Rd7
{[%clk 0:00:06.2]} 43... Bf8 {[%clk 0:00:10.2]} 44. Rxb7 {[%clk 0:00:06.2]}
44... Rxe6 {[%clk 0:00:10.3]} 45. Re1 {[%clk 0:00:06.1]} 45... f5 {[%clk
0:00:09.7]} 46. Rb8 {[%clk 0:00:06.3]} 46... fxe4 {[%clk 0:00:06.8]} 47. Rxf8+
{[%clk 0:00:06.4]} 47... Kh7 {[%clk 0:00:07.7]} 48. Rf4 {[%clk 0:00:07]} 48...
e3 {[%clk 0:00:07.3]} 49. Rf3 {[%clk 0:00:07.5]} 49... e2 {[%clk 0:00:07.4]} 50.
Rf2 {[%clk 0:00:07.8]} 50... Re3 {[%clk 0:00:08.1]} 51. Rfxe2 {[%clk 0:00:08.2]}
51... Rxb3 {[%clk 0:00:09]} 52. Re5 {[%clk 0:00:08.5]} 1-0

[Event "*** Titled Tuesday Blitz"]
[Site "Chess.com"]
[Date "2020.03.03"]
[Round "8"]
[White "MisiekZielony"]
[Black "GCamachoMartinez"]
[Result "0-1"]
[WhiteElo "2101"]
[BlackElo "2398"]
[TimeControl "180+1"]
[EndTime "14:35:54 PST"]
[Termination "GCamachoMartinez won on time"]

1. c4 {[%clk 0:02:59.6]} 1... c5 {[%clk 0:02:56.4]} 2. Nc3 {[%clk 0:02:59.4]}
2... Nf6 {[%clk 0:02:54.7]} 3. g3 {[%clk 0:02:59.3]} 3... d5 {[%clk 0:02:54.1]}
4. cxd5 {[%clk 0:02:58.8]} 4... Nxd5 {[%clk 0:02:53.6]} 5. Bg2 {[%clk
0:02:59.1]} 5... Nc7 {[%clk 0:02:45.1]} 6. f4 {[%clk 0:02:58.5]} 6... g6 {[%clk
0:02:36.7]} 7. Qb3 {[%clk 0:02:41.1]} 7... Nd7 {[%clk 0:02:30]} 8. Nf3 {[%clk
0:02:28]} 8... Bg7 {[%clk 0:02:29.5]} 9. O-O {[%clk 0:02:27.3]} 9... O-O {[%clk
0:02:28.9]} 10. Qc2 {[%clk 0:02:16.1]} 10... Rb8 {[%clk 0:02:22.7]} 11. b3
{[%clk 0:02:15.5]} 11... b6 {[%clk 0:02:22.6]} 12. Bb2 {[%clk 0:02:14.4]} 12...
Nf6 {[%clk 0:02:20.7]} 13. Ne5 {[%clk 0:02:09.1]} 13... Bb7 {[%clk 0:02:20.4]}
14. Nc6 {[%clk 0:02:06.7]} 14... Bxc6 {[%clk 0:02:19.4]} 15. Bxc6 {[%clk
0:02:06.6]} 15... Nfd5 {[%clk 0:02:14.8]} 16. Nxd5 {[%clk 0:01:27.5]} 16... Nxd5
{[%clk 0:02:15.7]} 17. Bxg7 {[%clk 0:01:16.2]} 17... Kxg7 {[%clk 0:02:15]} 18.
Bxd5 {[%clk 0:00:52.1]} 18... Qxd5 {[%clk 0:02:13.6]} 19. Qc3+ {[%clk
0:00:48.3]} 19... Kg8 {[%clk 0:02:05.7]} 20. d3 {[%clk 0:00:48.1]} 20... Rbc8
{[%clk 0:01:51]} 21. Rac1 {[%clk 0:00:47.4]} 21... Rfd8 {[%clk 0:01:45.5]} 22.
Qb2 {[%clk 0:00:42.2]} 22... Qd4+ {[%clk 0:01:39.4]} 23. Qxd4 {[%clk 0:00:41.5]}
23... cxd4 {[%clk 0:01:40.3]} 24. Kf2 {[%clk 0:00:40.3]} 24... f5 {[%clk
0:01:38.8]} 25. Rfd1 {[%clk 0:00:38.5]} 25... Kf7 {[%clk 0:01:37.6]} 26. Ke1
{[%clk 0:00:33.2]} 26... Ke6 {[%clk 0:01:35.8]} 27. Kd2 {[%clk 0:00:33.1]} 27...
Kd5 {[%clk 0:01:33.3]} 28. h4 {[%clk 0:00:16.1]} 28... h5 {[%clk 0:01:29.1]} 29.
Re1 {[%clk 0:00:14.4]} 29... b5 {[%clk 0:00:59.6]} 30. e4+ {[%clk 0:00:12.9]}
30... dxe3+ {[%clk 0:00:59.5]} 31. Rxe3 {[%clk 0:00:12.9]} 31... Rxc1 {[%clk
0:00:52.9]} 32. Kxc1 {[%clk 0:00:12.2]} 32... Kd6 {[%clk 0:00:51.6]} 33. Kb2
{[%clk 0:00:09.1]} 33... Rc8 {[%clk 0:00:50.8]} 34. b4 {[%clk 0:00:09.1]} 34...
a6 {[%clk 0:00:50.5]} 35. Re5 {[%clk 0:00:08.7]} 35... e6 {[%clk 0:00:50.1]} 36.
a4 {[%clk 0:00:05.8]} 36... bxa4 {[%clk 0:00:46.8]} 37. Ra5 {[%clk 0:00:05.4]}
37... Rc6 {[%clk 0:00:47.2]} 38. Rxa4 {[%clk 0:00:05.4]} 38... Kd5 {[%clk
0:00:47.2]} 39. Kb3 {[%clk 0:00:02.3]} 39... e5 {[%clk 0:00:19.4]} 40. fxe5
{[%clk 0:00:02.1]} 40... Kxe5 {[%clk 0:00:20.3]} 41. Ra5+ {[%clk 0:00:01.5]}
41... Kd4 {[%clk 0:00:18.5]} 42. Ra1 {[%clk 0:00:01.3]} 42... Kxd3 {[%clk
0:00:17.1]} 43. Rd1+ {[%clk 0:00:01.1]} 43... Ke3 {[%clk 0:00:16.5]} 44. Rf1
{[%clk 0:00:01.3]} 44... Ke2 {[%clk 0:00:16]} 45. Rf4 {[%clk 0:00:01.2]} 45...
Ke3 {[%clk 0:00:12.3]} 0-1

[Event "*** Titled Tuesday Blitz"]
[Site "Chess.com"]
[Date "2020.03.03"]
[Round "8"]
[White "ChessPlayer202202"]
[Black "Everyfishknows"]
[Result "1-0"]
[WhiteElo "2302"]
[BlackElo "2397"]
[TimeControl "180+1"]
[EndTime "14:35:56 PST"]
[Termination "ChessPlayer202202 won by checkmate"]

1. e4 {[%clk 0:02:58.8]} 1... e5 {[%clk 0:02:59.4]} 2. Nf3 {[%clk 0:02:56.7]}
2... Nc6 {[%clk 0:02:59.7]} 3. Bc4 {[%clk 0:02:54.9]} 3... Nf6 {[%clk
0:02:57.3]} 4. d3 {[%clk 0:02:54.7]} 4... Be7 {[%clk 0:02:56.1]} 5. O-O {[%clk
0:02:53.3]} 5... O-O {[%clk 0:02:54.9]} 6. a4 {[%clk 0:02:52.1]} 6... d6 {[%clk
0:02:53.4]} 7. a5 {[%clk 0:02:51.6]} 7... a6 {[%clk 0:02:40.4]} 8. Re1 {[%clk
0:02:41.6]} 8... Be6 {[%clk 0:02:36.6]} 9. h3 {[%clk 0:02:38.2]} 9... h6 {[%clk
0:02:07.9]} 10. Nbd2 {[%clk 0:02:36.6]} 10... Bxc4 {[%clk 0:02:05.6]} 11. dxc4
{[%clk 0:02:30.9]} 11... Re8 {[%clk 0:02:02.7]} 12. Nf1 {[%clk 0:02:29.3]} 12...
Bf8 {[%clk 0:01:58.8]} 13. Bd2 {[%clk 0:02:19.8]} 13... g6 {[%clk 0:01:57.9]}
14. Bc3 {[%clk 0:02:05.6]} 14... Bg7 {[%clk 0:01:53.8]} 15. Qd3 {[%clk
0:02:05.7]} 15... Nd7 {[%clk 0:01:51.9]} 16. b4 {[%clk 0:02:03.1]} 16... Kh7
{[%clk 0:01:37.7]} 17. Ne3 {[%clk 0:02:02.4]} 17... Nf8 {[%clk 0:01:31.4]} 18.
Nd5 {[%clk 0:01:53.7]} 18... Ne6 {[%clk 0:01:29.2]} 19. b5 {[%clk 0:01:51.1]}
19... Nc5 {[%clk 0:01:27.1]} 20. Qe2 {[%clk 0:01:45]} 20... Nd4 {[%clk
0:01:26.2]} 21. Qd1 {[%clk 0:01:29]} 21... axb5 {[%clk 0:01:22.3]} 22. Nxd4
{[%clk 0:01:28.5]} 22... exd4 {[%clk 0:01:21.1]} 23. Bxd4 {[%clk 0:01:29.4]}
23... Rxe4 {[%clk 0:00:26]} 24. Rxe4 {[%clk 0:00:52.7]} 24... Nxe4 {[%clk
0:00:26.9]} 25. Bxg7 {[%clk 0:00:52.8]} 25... Kxg7 {[%clk 0:00:27.8]} 26. Qd4+
{[%clk 0:00:52.8]} 26... Nf6 {[%clk 0:00:28.4]} 27. cxb5 {[%clk 0:00:48.7]}
27... c6 {[%clk 0:00:18]} 28. bxc6 {[%clk 0:00:44.4]} 28... bxc6 {[%clk
0:00:18.9]} 29. Nb6 {[%clk 0:00:44.5]} 29... Ra6 {[%clk 0:00:14.5]} 30. Ra3
{[%clk 0:00:41.7]} 30... Kh7 {[%clk 0:00:14.1]} 31. Rf3 {[%clk 0:00:40.7]} 31...
Kg7 {[%clk 0:00:06.7]} 32. Qc3 {[%clk 0:00:30.3]} 32... d5 {[%clk 0:00:03.9]}
33. Qxc6 {[%clk 0:00:10]} 33... Rxa5 {[%clk 0:00:03.7]} 34. Qc3 {[%clk 0:00:09]}
34... Qxb6 {[%clk 0:00:02.5]} 35. Rxf6 {[%clk 0:00:08.6]} 35... Qxf6 {[%clk
0:00:01]} 36. Qxa5 {[%clk 0:00:09]} 36... h5 {[%clk 0:00:01.8]} 37. Qxd5 {[%clk
0:00:08.8]} 37... Qa1+ {[%clk 0:00:01.5]} 38. Kh2 {[%clk 0:00:08.5]} 38... Qc1
{[%clk 0:00:01.9]} 39. Qe4 {[%clk 0:00:07.7]} 39... Qd2 {[%clk 0:00:01.5]} 40.
c4 {[%clk 0:00:06.2]} 40... Qd6+ {[%clk 0:00:02]} 41. g3 {[%clk 0:00:06]} 41...
Qc5 {[%clk 0:00:02.9]} 42. Kg2 {[%clk 0:00:06]} 42... Qb4 {[%clk 0:00:02.7]} 43.
Qd5 {[%clk 0:00:06.2]} 43... Qc3 {[%clk 0:00:03]} 44. c5 {[%clk 0:00:06.5]}
44... Kf8 {[%clk 0:00:03.4]} 45. c6 {[%clk 0:00:06.9]} 45... Ke7 {[%clk
0:00:04]} 46. Qd7+ {[%clk 0:00:07.1]} 46... Kf6 {[%clk 0:00:04.4]} 47. c7 {[%clk
0:00:07.3]} 47... Qb4 {[%clk 0:00:01.1]} 48. Qd8+ {[%clk 0:00:07.5]} 48... Kg7
{[%clk 0:00:01.4]} 49. c8=Q {[%clk 0:00:04.8]} 49... Qe4+ {[%clk 0:00:01.9]} 50.
Kf1 {[%clk 0:00:05.1]} 50... Kh6 {[%clk 0:00:02.3]} 51. Qh8+ {[%clk 0:00:04.3]}
51... Kg5 {[%clk 0:00:02.6]} 52. Qc5+ {[%clk 0:00:04.9]} 52... f5 {[%clk
0:00:01.9]} 53. Qe3+ {[%clk 0:00:05.1]} 53... Qxe3 {[%clk 0:00:01.9]} 54. fxe3
{[%clk 0:00:06]} 54... h4 {[%clk 0:00:02.8]} 55. Qxh4# {[%clk 0:00:05.7]} 1-0